bitfinex-derivatives/quotes_SOLF0:USTF0_20241016
["timestamp","ask_amount","ask_price","bid_price","bid_amount"]
[1729044655010,3.2046,156.04,155.95,22.17]
[1729044655507,3.2046,156.04,155.99,3.2053]
[1729044655703,1.4349,156.06,155.99,8.9253]
[1729044656006,3.2046,156.03,155.99,8.9254]
[1729044656800,3.2039,156.07,156.02,3.2048]
[1729044657002,2.4133,156.09,156.02,3.2048]
[1729044657205,2.4133,156.09,156.03,5.72]
[1729044657508,2.4133,156.09,156.05,3.2041]
[1729044657709,2.4133,156.09,156.03,5.72]
[1729044657916,3.2036,156.08,156.04,3.2044]
[1729044658806,5.6167,156.09,156.05,3.2042]
[1729044659511,2.4133,156.09,156.03,5.72]
[1729044660305,3.2037,156.08,156.03,8.9245]
[1729044660523,2.4133,156.09,156.03,8.9245]
[1729044661208,3.2037,156.08,156.04,3.2042]
[1729044661409,2.4133,156.09,156.03,5.72]
[1729044662010,3.204,156.07,156.03,5.72]
[1729044662208,2.4133,156.09,156.01,5.72]
[1729044662618,2.4133,156.09,155.97,22.17]
[1729044662806,2.4133,156.09,155.97,27.89]
[1729044663204,2.4133,156.09,155.98,3.2055]
[1729044663812,3.2048,156.03,155.98,3.2055]
[1729044664109,2.4133,156.09,156.0,22.17]
[1729044664715,2.4133,156.09,156.01,3.205]
[1729044664915,2.4133,156.09,156.0,22.17]
[1729044665312,3.26046541,156.08,155.93,1.2994]
[1729044665514,2.4133,156.09,155.96,22.17]
[1729044665714,2.4133,156.09,155.98,22.17]
[1729044665909,3.2042,156.06,156.01,3.2049]
[1729044666107,2.4133,156.09,155.99,5.72]
[1729044666319,2.4133,156.09,155.99,8.9254]
[1729044666320,3.2048,156.02,155.99,8.9254]
[1729044666512,2.4133,156.09,155.99,5.72]
[1729044667015,2.4133,156.09,155.99,27.89]
[1729044667513,2.4133,156.09,155.99,5.72]
[1729044667714,2.4133,156.09,155.97,22.17]
[1729044667715,23.15455043,156.08,155.97,22.17]
[1729044667933,23.15455043,156.08,155.82,20.25]
[1729044667934,22.17,156.05,155.91,1.0309]
[1729044668112,3.2059,155.97,155.91,6.8709]
[1729044668316,3.2059,155.97,155.91,5.84]
[1729044668617,3.1416298,156.01,155.9,28.01]
[1729044668823,4.4990298,156.01,155.9,28.01]
[1729044669625,3.2058,155.98,155.93,3.2065]
[1729044669825,5.84,155.98,155.86,22.17]
[1729044670031,2.8238,155.97,155.87,5.84]
[1729044670214,2.8238,155.97,155.87,9.0970366]
[1729044670520,2.8238,155.97,155.87,5.84]
[1729044671112,3.2064,155.95,155.9,3.2073]
[1729044671917,3.207,155.92,155.87,9.0477]
[1729044672217,3.207,155.92,155.87,3.2077]
[1729044673208,4.5856,155.94,155.86,28.01]
[1729044673411,2.8238,155.97,155.89,22.17]
[1729044674409,3.2064,155.95,155.91,3.207]
[1729044675020,2.8238,155.97,155.89,22.17]
[1729044675323,3.2061,155.96,155.92,3.2069]
[1729044675528,2.8238,155.97,155.89,22.17]
[1729044675932,2.8238,155.97,155.9,19.7]
[1729044676232,7.1816,156.02,155.96,13.86]
[1729044676525,7.2144,156.07,156.02,3.2048]
[1729044676724,4.0106,156.07,156.02,3.2048]
[1729044677427,4.0106,156.07,156.0,19.7]
[1729044677927,4.0106,156.07,156.0,5.84]
[1729044678625,3.2046,156.04,156.0,5.84]
[1729044679326,3.2046,156.04,156.0,9.0452]
[1729044679935,3.2046,156.04,156.0,5.84]
[1729044680426,9.8506,156.07,155.97,28.0]
[1729044680622,3.2048,156.03,155.98,3.2056]
[1729044681228,3.2048,156.03,155.97,28.0]
[1729044681425,3.2048,156.03,155.99,3.2054]
[1729044684129,9.8506,156.07,155.97,28.0]
[1729044684328,3.2044,156.05,155.97,28.0]
[1729044684532,9.8506,156.07,155.97,28.0]
[1729044684821,3.17452875,156.06,155.95,22.16]
[1729044685030,13.00108172,156.07,155.95,22.16]
[1729044685224,3.2045,156.04,155.95,25.3528045]
[1729044685429,3.2045,156.04,155.97,22.16]
[1729044685733,4.0106,156.07,155.98,5.84]
[1729044687437,3.2046,156.04,156.0,3.2052]
[1729044689340,3.21375905,156.06,155.98,5.84]
[1729044689543,4.0106,156.07,155.98,5.84]
[1729044690558,2.7104,156.07,155.98,5.84]
[1729044690759,2.7104,156.07,155.98,7.1562]
[1729044690959,3.2043,156.05,156.01,3.2049]
[1729044691354,3.2043,156.05,155.98,7.1562]
[1729044692052,3.2046,156.04,155.98,5.84]
[1729044692253,2.7104,156.07,155.99,3.2053]
[1729044692554,3.2051,156.01,155.98,5.84]
[1729044692956,9.1021658,156.06,155.98,9.0455]
[1729044692957,3.2049,156.02,155.98,9.0455]
[1729044693460,1.3489,156.05,155.98,5.84]
[1729044693660,2.7104,156.07,155.98,5.84]
[1729044693957,1.3688,156.07,156.0,22.16]
[1729044694164,1.3688,156.07,155.98,5.84]
[1729044694364,3.2046,156.04,156.0,3.2052]
[1729044694953,3.2042,156.05,156.0,3.2052]
[1729044695156,1.3688,156.07,156.0,3.2052]
[1729044695357,7.2088,156.07,156.0,3.2052]
[1729044695962,3.2046,156.04,156.0,3.2052]
[1729044697460,10.41241562,156.07,156.0,3.2052]
[1729044697658,10.41241562,156.07,155.95,22.16]
[1729044697956,13.85,156.05,155.96,5.82]
[1729044698363,3.205,156.02,155.99,3.2053]
[1729044698555,13.85,156.05,155.96,5.82]
[1729044698862,10.41241562,156.07,155.97,13.85]
[1729044699058,3.2046,156.04,156.0,3.2052]
[1729044699454,3.2043,156.05,156.01,3.2048]
[1729044699965,7.2088,156.07,155.99,13.85]
[1729044700459,3.2041,156.06,156.03,3.2046]
[1729044700663,1.3688,156.07,156.01,13.85]
[1729044701667,1.3688,156.07,156.0,5.82]
[1729044702868,1.3688,156.07,156.04,3.2043]
[1729044704062,4.5726,156.07,156.04,3.2043]
[1729044704867,15.2188,156.07,155.97,13.85]
[1729044705172,3.2048,156.03,155.99,3.2053]
[1729044705863,3.2043,156.05,155.99,3.2053]
[1729044706059,18.40810537,156.07,155.99,3.2053]
[1729044706375,3.2047,156.03,155.99,3.2053]
[1729044708163,3.2047,156.03,156.0,3.2052]
[1729044708475,3.2047,156.03,155.98,5.82]
[1729044708870,3.2047,156.03,155.99,3.2054]
[1729044709072,5.82,156.06,155.99,3.2054]
[1729044709473,5.82,156.06,156.0,3.2052]
[1729044709878,3.2047,156.03,156.0,3.2052]
[1729044713478,3.2046,156.04,156.0,3.2052]
[1729044713778,5.82,156.06,155.97,19.67]
[1729044713975,3.205,156.02,155.98,3.2055]
[1729044714169,13.85,156.05,155.97,5.82]
[1729044715083,3.2049,156.02,155.99,3.2053]
[1729044715576,3.2045,156.04,156.01,3.205]
[1729044717177,18.40810537,156.07,155.97,19.67]
[1729044717879,18.40810537,156.07,156.02,3.2047]
[1729044718668,3.2043,156.05,156.02,3.2047]
[1729044718980,18.40810537,156.07,156.01,3.2049]
[1729044719285,3.2045,156.04,156.01,3.2049]
[1729044720179,5.82,156.04,155.95,13.85]
[1729044720475,5.82,156.04,155.93,5.82]
[1729044720476,13.85,156.01,155.93,5.82]
[1729044720776,13.85,156.01,155.9,15.2885]
[1729044720777,3.2062,155.96,155.92,3.2067]
[1729044720975,7.149,156.0,155.9,15.2885]
[1729044721178,7.149,156.0,155.9,5.82]
[1729044721179,13.85,155.99,155.9,5.82]
[1729044721380,3.2065,155.94,155.9,9.0273]
[1729044721580,3.24101138,155.98,155.9,5.82]
[1729044722081,7.149,156.0,155.91,13.85]
[1729044722381,1.329,156.0,155.93,13.85]
[1729044722582,4.5344,156.0,155.95,3.2061]
[1729044722979,4.5344,156.0,155.9,5.82]
[1729044723171,3.2059,155.97,155.93,3.2067]
[1729044723576,3.2063,155.95,155.91,3.2069]
[1729044724182,3.19534406,155.98,155.91,3.2069]
[1729044724686,3.19534406,155.98,155.89,100.73407281]
[1729044724871,3.2062,155.96,155.92,3.2068]
[1729044725175,1.329,156.0,155.9,13.85]
[1729044725378,1.329,156.0,155.92,13.85]
[1729044726184,3.2058,155.98,155.94,3.2064]
[1729044726685,3.2058,155.98,155.92,13.85]
[1729044726989,3.2058,155.98,155.94,3.2064]
[1729044727285,3.2058,155.98,155.92,13.85]
[1729044727585,1.329,156.0,155.95,3.2061]
[1729044728296,3.2055,155.99,155.96,3.206]
[1729044729288,3.2055,155.99,155.95,3.2062]
[1729044730497,2.833,156.03,155.94,13.85]
[1729044730783,1.4054,156.03,155.97,13.85]
[1729044730987,1.4054,156.03,155.97,19.49]
[1729044731577,15.2596,156.05,155.97,19.49]
[1729044731578,1.4096,156.05,155.97,19.49]
[1729044731784,1.4096,156.05,155.99,13.85]
[1729044731989,4.612,156.07,156.03,3.2045]
[1729044732486,1.4082,156.07,155.99,13.85]
[1729044732984,3.2041,156.06,156.02,3.2048]
[1729044736391,3.2042,156.05,156.02,3.2048]
[1729044738093,3.2046,156.04,156.0,3.2051]
[1729044738395,13.85,156.06,156.0,3.2051]
[1729044738693,1.2987,156.05,156.0,3.2051]
[1729044739202,3.2045,156.04,156.0,3.2051]
[1729044739522,1.2987,156.05,156.01,3.205]
[1729044739687,4.5031,156.05,156.01,3.205]
[1729044740187,3.2046,156.04,156.0,3.2051]
[1729044740585,1.2987,156.05,156.0,3.2051]
[1729044740895,1.2987,156.05,155.97,5.64]
[1729044741488,3.2045,156.04,155.97,5.64]
[1729044742397,3.2049,156.02,155.99,3.2054]
[1729044743187,3.2051,156.01,155.96,5.64]
[1729044743397,13.85,156.04,155.96,5.64]
[1729044744386,13.85,156.04,155.98,3.2056]
[1729044745497,3.2051,156.01,155.98,3.2056]
[1729044746708,13.85,156.04,155.96,5.64]
[1729044746898,3.2048,156.03,155.96,5.64]
[1729044747412,1.2987,156.05,155.96,19.49]
[1729044747591,3.2046,156.04,155.96,19.49]
[1729044747995,3.2046,156.04,156.0,3.2051]
[1729044748199,3.2046,156.04,155.96,19.49]
[1729044748499,3.2046,156.04,156.0,3.2051]
[1729044748693,4.503,156.05,155.96,5.64]
[1729044748890,3.2043,156.05,155.98,13.85]
[1729044750113,1.4082,156.07,156.0,13.85]
[1729044750297,1.0,156.09,156.02,13.85]
[1729044751001,1.0,156.09,156.07,13.85]
[1729044751218,16.47260246,156.13,156.08,8.81785189]
[1729044751469,1.0,156.13,156.1,13.85]
[1729044751602,1.0,156.13,156.12,3.2028]
[1729044752296,1.0,156.13,156.09,13.85]
[1729044753404,1.0,156.13,156.09,5.64]
[1729044753599,1.0,156.13,156.08,3.2035]
[1729044754218,3.203,156.12,156.06,3.2038]
[1729044754502,2.3935,156.13,156.06,5.64]
[1729044754503,3.7422,156.13,156.06,5.64]
[1729044754906,3.7422,156.13,156.1,3.2031]
[1729044755600,3.7422,156.13,156.08,13.85]
[1729044755601,1.0,156.13,156.08,13.85]
[1729044756196,1.0,156.13,156.11,3.2028]
[1729044757603,1.0,156.13,156.1,3.2032]
[1729044758398,4.2026,156.13,156.07,5.58]
[1729044758696,1.0,156.13,156.07,5.58]
[1729044759600,1.0,156.13,156.1,3.203]
[1729044762103,1.0,156.13,155.95,3.28108719]
[1729044762104,13.85,156.11,155.95,3.28108719]
[1729044762302,6.9978,156.1,155.99,13.85]
[1729044762503,3.2038,156.08,156.04,3.2044]
[1729044762816,1.4178,156.1,156.03,16.97904465]
[1729044763003,1.4178,156.1,156.07,3.2038]
[1729044763915,1.4178,156.1,156.06,3.204]
[1729044764111,1.4178,156.1,156.03,19.43]
[1729044764507,1.4178,156.1,156.06,3.204]
[1729044765104,1.4178,156.1,156.07,3.2036]
[1729044765405,3.2028,156.12,156.03,19.43]
[1729044765606,1.0,156.13,156.08,13.85]
[1729044765919,1.0,156.13,156.12,3.2028]
[1729044768413,1.0,156.13,156.08,13.85]
[1729044769014,1.0,156.13,156.12,3.2028]
[1729044770111,1.0,156.13,156.08,13.85]
[1729044770829,1.0,156.13,156.1,3.203]
[1729044772014,1.0,156.13,156.04,21.875]
[1729044772212,3.7543,156.13,156.04,20.8419]
[1729044772612,3.7543,156.13,156.04,19.43]
[1729044772921,3.7543,156.13,156.04,13.85]
[1729044773614,3.2028,156.12,156.08,3.2034]
[1729044774213,6.9569,156.13,156.09,3.2032]
[1729044775224,3.7543,156.13,156.1,3.2031]
[1729044776115,2.4019,156.13,156.1,3.2031]
[1729044776421,3.2028,156.12,156.06,13.85]
[1729044777121,3.2028,156.12,156.08,3.2035]
[1729044777326,2.4019,156.13,156.08,3.2035]
[1729044778321,3.2029,156.12,156.08,3.2035]
[1729044779632,3.12859682,156.12,156.03,19.43]
[1729044779924,13.85,156.09,155.99,5.58]
[1729044780117,19.43,156.09,155.99,5.58]
[1729044780320,3.2041,156.06,156.03,3.2046]
[1729044780528,1.396,156.08,156.03,3.2046]
[1729044780724,3.204,156.06,155.99,5.58]
[1729044780929,3.204,156.06,155.96,19.43]
[1729044780930,13.85,156.06,155.96,19.43]
[1729044781125,6.9939,156.05,155.96,19.43]
[1729044781677,6.9939,156.05,155.96,13.85]
[1729044782127,6.9939,156.05,155.99,3.2054]
[1729044782629,6.9939,156.05,155.95,8.0442]
[1729044782630,13.85,156.04,155.95,5.58]
[1729044783132,3.2052,156.01,155.98,3.2056]
[1729044783427,13.85,156.04,155.98,3.2056]
[1729044783633,3.2049,156.02,155.98,3.2056]
[1729044786225,3.2048,156.03,156.0,3.2052]
[1729044786622,6.9939,156.05,156.0,3.2052]
[1729044786818,6.9939,156.05,155.95,13.85]
[1729044786819,5.58,156.04,155.95,13.85]
[1729044787130,1.4139,156.05,155.99,13.85]
[1729044787325,5.58,156.07,155.99,13.85]
[1729044787627,5.58,156.07,156.04,3.2043]
[1729044788633,13.85,156.06,155.95,19.33]
[1729044789622,3.2046,156.04,156.0,3.2052]
[1729044790322,13.85,156.04,155.95,5.48]
[1729044790527,3.2049,156.02,155.98,3.2055]
[1729044790926,4.5796,156.02,155.98,3.2055]
[1729044792238,4.5796,156.02,155.84,13.85]
[1729044792239,3.2055,155.99,155.96,3.2059]
[1729044793529,3.2053,156.0,155.96,3.2059]
[1729044794531,5.48,155.99,155.96,3.2059]
[1729044794731,8.6855,155.99,155.91,5.48]
[1729044794934,8.6855,155.99,155.95,3.2062]
[1729044794935,5.48,155.99,155.95,3.2062]
[1729044795528,8.6855,155.99,155.95,3.2062]
[1729044795733,5.48,155.99,155.96,3.2059]
[1729044797832,5.48,155.99,155.91,5.48]
[1729044798028,3.2058,155.98,155.9,15.2031]
[1729044798227,5.48,155.99,155.9,15.2031]
[1729044798424,3.206,155.97,155.93,3.2065]
[1729044800031,8.6856,155.99,155.95,3.2062]
[1729044800337,5.48,155.99,155.9,15.2031]
[1729044801038,5.48,155.99,155.96,3.206]
[1729044801345,8.6854,156.0,155.96,3.206]
[1729044801830,3.2055,155.99,155.96,3.206]
[1729044803243,19.33,156.0,155.9,15.2031]
[1729044803536,19.33,156.0,155.9,1.3531]
[1729044803537,13.85,155.98,155.9,1.3531]
[1729044803937,13.85,155.98,155.94,3.2063]
[1729044804136,13.85,155.98,155.89,5.48]
[1729044804440,3.2059,155.97,155.89,5.48]
[1729044804636,13.85,155.98,155.88,13.85]
[1729044804841,13.85,155.98,155.88,19.33]
[1729044805045,13.85,155.98,155.93,3.2065]
[1729044805046,3.2061,155.96,155.93,3.2065]
[1729044805338,19.33,155.96,155.86,20.33]
[1729044806139,5.48,155.96,155.88,13.85]
[1729044806846,13.85,156.0,155.88,13.85]
[1729044807134,5.48,155.99,155.9,13.85]
[1729044807340,8.6855,155.99,155.95,3.2061]
[1729044809142,3.2058,155.98,155.95,3.2061]
[1729044809347,5.48,155.99,155.94,3.2064]
[1729044809743,3.2057,155.98,155.94,3.2064]
[1729044811040,3.2057,155.98,155.95,3.2062]
[1729044814253,3.2057,155.98,155.94,3.2063]
[1729044814441,5.48,155.99,155.94,3.2063]
[1729044814744,5.48,155.99,155.9,13.85]
[1729044814953,3.2058,155.98,155.95,3.2062]
[1729044819751,1.3859,156.01,155.92,13.85]
[1729044819944,6.6947,156.02,155.94,13.85]
[1729044820151,6.6947,156.02,155.94,19.17]
[1729044820549,1.3747,156.02,155.94,19.17]
[1729044820851,13.85,156.05,155.94,19.17]
[1729044821051,5.32,156.04,156.01,3.2049]
[1729044821853,5.32,156.04,155.99,3.2054]
[1729044822250,3.205,156.01,155.94,5.32]
[1729044822460,3.27164849,156.01,155.96,3.206]
[1729044822753,5.32,156.04,155.94,5.32]
[1729044822950,13.85,156.03,155.94,5.32]
[1729044823154,5.32,156.02,155.92,13.85]
[1729044823355,3.2051,156.01,155.92,13.85]
[1729044823558,8.49802571,156.02,155.96,3.2059]
[1729044823857,8.49802571,156.02,155.92,13.85]
[1729044824059,5.32,156.02,155.92,13.85]
[1729044824260,3.2054,156.0,155.92,13.85]
[1729044824757,3.2058,155.98,155.95,3.2062]
[1729044825156,4.59652229,156.0,155.91,6.6902]
[1729044826061,4.59652229,156.0,155.93,3.2065]
[1729044826062,3.2055,155.99,155.93,3.2065]
[1729044826268,3.2055,155.99,155.91,6.6902]
[1729044826664,3.2055,155.99,155.95,3.2061]
[1729044826957,3.2055,155.99,155.91,6.6902]
[1729044827953,1.4294,156.0,155.91,1.3702]
[1729044828148,1.4294,156.0,155.92,13.85]
[1729044828958,3.2057,155.98,155.95,3.2061]
[1729044829456,1.4294,156.0,155.91,1.3702]
[1729044829659,3.2055,155.99,155.91,1.3702]
[1729044830061,3.2064,155.95,155.91,3.2069]
[1729044830262,3.2064,155.95,155.88,5.32]
[1729044830659,5.32,155.98,155.88,5.32]
[1729044830865,3.2061,155.96,155.92,3.2067]
[1729044832958,13.85,155.93,155.86,1.0]
[1729044833165,17.0571,155.91,155.87,3.2078]
[1729044833368,13.85,155.91,155.86,1.0]
[1729044833559,3.27186477,155.9,155.86,1.0]
[1729044833759,3.2077,155.88,155.86,1.0]
[1729044834665,13.85,155.87,155.82,1.0]
[1729044834970,1.3647,155.87,155.82,1.0]
[1729044835273,15.2147,155.87,155.82,1.0]
[1729044835667,13.85,155.85,155.82,1.0]
[1729044835877,19.17,155.85,155.82,1.0]
[1729044836373,22.3783,155.85,155.82,1.0]
[1729044838075,3.2086,155.84,155.82,1.0]
[1729044838375,5.32,155.86,155.82,1.0]
[1729044839073,5.32,155.86,155.83,3.2086]
[1729044839272,4.48401717,155.92,155.82,1.0]
[1729044839472,19.17,155.91,155.82,1.0]
[1729044839874,3.2074,155.9,155.84,3.2084]
[1729044840063,3.2074,155.9,155.82,1.0]
[1729044840483,3.2074,155.9,155.85,3.2082]
[1729044840779,19.17,155.91,155.82,14.85]
[1729044840972,1.3318,155.92,155.82,14.85]
[1729044841183,6.6518,155.92,155.84,13.85]
[1729044841477,1.3318,155.92,155.89,3.2075]
[1729044841967,1.3318,155.92,155.85,5.32]
[1729044842164,18.47031091,155.92,155.83,5.32]
[1729044842376,15.1818,155.92,155.83,5.32]
[1729044842569,3.2072,155.91,155.87,3.2079]
[1729044843075,3.2072,155.91,155.83,5.32]
[1729044843274,3.2072,155.91,155.88,3.2077]
[1729044846877,1.3318,155.92,155.88,3.2077]
[1729044847076,5.32,155.96,155.85,13.85]
[1729044847277,5.32,155.96,155.86,5.44]
[1729044847481,3.2063,155.95,155.91,3.2069]
[1729044847679,5.32,155.96,155.88,13.85]
[1729044848073,5.32,155.96,155.93,3.2066]
[1729044848275,5.32,155.96,155.88,13.85]
[1729044849381,8.5261,155.96,155.93,3.2066]
[1729044849576,2.7233,155.99,155.88,17.06754009]
[1729044849786,2.7233,155.99,155.9,19.29]
[1729044849973,2.7233,155.99,155.92,3.2067]
[1729044849974,3.2058,155.98,155.92,3.2067]
[1729044850280,3.2058,155.98,155.9,19.29]
[1729044850884,3.2058,155.98,155.94,3.2065]
[1729044852783,3.2059,155.97,155.93,3.2066]
[1729044853885,3.2059,155.97,155.94,3.2064]
[1729044855684,3.206,155.97,155.93,3.2065]
[1729044855988,13.85,155.98,155.9,5.44]
[1729044856386,3.2062,155.96,155.92,3.2067]
[1729044856892,3.2062,155.96,155.9,5.44]
[1729044857191,3.2062,155.96,155.93,3.2067]
[1729044857580,3.2063,155.95,155.92,3.2068]
[1729044857782,13.85,155.94,155.86,5.44]
[1729044857983,13.85,155.89,155.82,2.4351]
[1729044858388,17.0581,155.87,155.83,3.2087]
[1729044858584,13.85,155.87,155.82,1.0]
[1729044859382,1.3148,155.9,155.82,14.85]
[1729044860393,1.3148,155.9,155.87,3.2078]
[1729044862693,1.3148,155.9,155.87,3.2079]
[1729044863386,13.85,155.89,155.82,6.44]
[1729044863585,13.85,155.87,155.82,6.44]
[1729044864383,17.058,155.87,155.84,3.2085]
[1729044864894,13.85,155.87,155.82,1.0]
[1729044865087,3.2084,155.85,155.82,1.0]
[1729044865994,3.2084,155.85,155.82,4.2089]
[1729044867382,3.2082,155.86,155.82,4.2089]
[1729044870795,9.9622,155.9,155.87,3.2078]
[1729044870987,6.7548,155.9,155.82,1.0]
[1729044871392,9.9621,155.9,155.86,3.208]
[1729044871608,13.85,155.89,155.82,1.0]
[1729044872197,3.2078,155.88,155.84,3.2084]
[1729044872599,3.2078,155.88,155.82,1.0]
[1729044872795,3.2078,155.88,155.85,3.2083]
[1729044874311,13.85,155.89,155.82,1.0]
[1729044874505,3.2079,155.87,155.84,3.2085]
[1729044875204,13.85,155.89,155.82,1.0]
[1729044875405,3.2085,155.85,155.82,1.0]
[1729044876390,3.2085,155.85,155.82,4.2089]
[1729044878597,1.3702,155.88,155.82,1.0]
[1729044878897,13.85,155.85,155.82,1.0]
[1729044879093,4.55813853,155.84,155.82,1.0]
[1729044879304,3.2087,155.83,155.82,1.0]
[1729044882009,17.0587,155.83,155.82,1.0]
[1729044883505,13.85,155.83,155.77,4.2099]
[1729044883704,5.34,155.82,155.77,4.2099]
[1729044884108,3.2093,155.81,155.77,4.2099]
[1729044884410,6.7577,155.84,155.77,1.0]
[1729044884615,3.2091,155.82,155.77,1.0]
[1729044885007,3.2092,155.81,155.78,3.2096]
[1729044885513,3.2092,155.81,155.77,1.0]
[1729044886007,3.2092,155.81,155.78,3.2097]
[1729044886210,3.2094,155.8,155.77,1.0]
[1729044887009,3.2094,155.8,155.77,4.2098]
[1729044887207,1.3782,155.82,155.77,1.0]
[1729044887512,3.2092,155.81,155.78,3.2097]
[1729044889811,1.3782,155.82,155.77,1.0]
[1729044890004,4.5872,155.82,155.79,3.2095]
[1729044891716,1.3782,155.82,155.8,3.2091]
[1729044892106,13.85,155.83,155.8,3.2091]
[1729044892316,13.85,155.83,155.79,3.2095]
[1729044892511,13.85,155.83,155.77,1.0]
[1729044893215,3.2092,155.81,155.78,3.2096]
[1729044893619,13.85,155.83,155.78,3.2096]
[1729044893810,3.209,155.82,155.78,3.2096]
[1729044895414,3.209,155.82,155.77,1.0]
[1729044895618,3.209,155.82,155.79,3.2094]
[1729044899920,8.88,155.8,155.79,3.2094]
[1729044900123,8.88,155.8,155.77,1.0]
[1729044900318,6.7577,155.84,155.77,4.21]
[1729044900319,8.88,155.78,155.77,4.21]
[1729044902813,8.88,155.78,155.77,1.0]
[1729044903008,5.34,155.8,155.77,1.0]
[1729044903212,1.4177,155.84,155.77,1.0]
[1729044903213,1.4177,155.84,155.77,9.88]
[1729044903412,8.88,155.82,155.78,3.2097]
[1729044903617,8.88,155.8,155.77,1.0]
[1729044904217,8.88,155.79,155.77,4.2099]
[1729044905025,8.88,155.79,155.77,1.0]
[1729044907119,12.0898,155.78,155.77,1.0]
[1729044907320,8.88,155.78,155.77,1.0]
[1729044907821,12.0898,155.78,155.77,1.0]
[1729044908725,3.2098,155.78,155.77,1.0]
[1729044908930,1.4177,155.84,155.77,1.0]
[1729044909221,8.88,155.81,155.77,1.0]
[1729044909426,8.88,155.82,155.77,9.88]
[1729044909824,8.88,155.82,155.79,3.2095]
[1729044910430,8.88,155.8,155.78,3.2097]
[1729044910927,8.88,155.79,155.78,3.2097]
[1729044911127,3.2098,155.78,155.77,1.0]
[1729044912621,12.0898,155.78,155.77,1.0]
[1729044913831,17.0898,155.78,155.77,1.0]
[1729044917534,3.2106,155.74,155.73,1.0]
[1729044917739,19.18,155.75,155.64,1.0]
[1729044918035,13.88,155.71,155.64,1.0]
[1729044918434,3.2114,155.7,155.64,1.0]
[1729044918734,3.2114,155.7,155.66,4.5941]
[1729044919529,13.88,155.71,155.66,1.3819]
[1729044919723,13.88,155.73,155.66,1.3819]
[1729044920131,13.88,155.73,155.7,3.2112]
[1729044920327,1.3759,155.77,155.68,13.88]
[1729044920628,1.3759,155.77,155.68,14.9186]
[1729044920828,4.586,155.77,155.68,14.9186]
[1729044921144,1.3759,155.77,155.68,14.9186]
[1729044921336,3.2102,155.76,155.72,3.2108]
[1729044921935,3.2106,155.74,155.7,3.2114]
[1729044922134,13.88,155.75,155.66,6.6819]
[1729044922335,13.88,155.73,155.66,6.6819]
[1729044922638,17.091,155.73,155.69,4.2116]
[1729044923832,3.2112,155.72,155.69,1.0]
[1729044924235,13.88,155.73,155.69,1.0]
[1729044924537,3.2114,155.71,155.69,1.0]
[1729044924941,13.88,155.73,155.69,1.0]
[1729044925238,13.88,155.73,155.7,3.2114]